Cogmind - Beta 10.2 @@@ ROGUE MODE // 2021.10.18 @ 10:11:15 Player: tionichm Result: Destroyed by G-34 Mercenary with Small Laser Performance ------------- Evolutions (1) 500 Regions Visited (2) 400 Robots Destroyed (11) 55 Value Destroyed (269) 269 Prototype IDs (2) 40 Alien Tech Used (0) 0 Bonus (0) 0 TOTAL SCORE: 1264 Bonus ------- None Cogmind --------- Core Integrity 0/400 Matter 300/300 Energy 100/100 System Corruption 2% Temperature Cool (6) Movement Core (150) Ox2 Location -9/Materials Parts ------- > --- POWER (1) -------- (None) > --- PROPULSION (3) --- (None) > --- UTILITY (3) ------ Medium Storage Unit Signal Interpreter > --- WEAPON (2) ------- (None) > --- INVENTORY (8) ---- Ion Engine Medium Storage Unit Medium Battery (200) Improved Terrain Scanner Particle Charger Tractor Beam Peak State ------------ > --- POWER ------------ Ion Engine > --- PROPULSION ------- Aluminum Leg Aluminum Leg Aluminum Leg > --- UTILITY ---------- Medium Storage Unit Signal Interpreter Targeting Computer > --- WEAPON ----------- Medium Laser Assault Rifle > --- INVENTORY -------- Ion Engine Light Nuclear Core Aluminum Leg Medium Storage Unit Medium Battery Improved Terrain Scanner Targeting Computer Tractor Beam [Rating: 10] Favorites ----------- Power Ion Engine Engine Ion Engine Power Core Light Nuclear Core Propulsion Aluminum Leg Leg Aluminum Leg Utility Medium Storage Unit Device Improved Terrain Scanner Storage Medium Storage Unit Processor Targeting Computer Weapon Assault Rifle Energy Gun Medium Laser Ballistic Gun Assault Rifle Impact Weapon Hammer Build | -11 -10 -9 ------- Run | Scr Mat Mat Slots Evolved 2 | . . 2 Power . | . . . Propulsion 1 | . . 1 Utility 1 | . . 1 Weapon . | . . . Parts Attached 18 | 7 7 4 Power 2 | 1 . 1 Engine 1 | 1 . . Core 1 | . . 1 Reactor . | . . . Propulsion 4 | 2 . 2 Treads . | . . . Leg 4 | 2 . 2 Wheel . | . . . Hover . | . . . Flight . | . . . Utility 5 | 2 2 1 Device 1 | 1 . . Storage 2 | 1 1 . Processor 2 | . 1 1 Hackware . | . . . Protection . | . . . Artifact . | . . . Weapon 7 | 2 5 . Energy Gun 2 | 1 1 . Energy Cannon . | . . . Ballistic Gun 2 | 1 1 . Ballistic Cannon . | . . . Launcher . | . . . Special Weapon . | . . . Impact Weapon 3 | . 3 . Slashing Weapon . | . . . Piercing Weapon . | . . . Special Melee Weapon . | . . . Unidentified Prototypes . | . . . Parts Lost 9 | . . 9 Power 2 | . . 2 Propulsion 4 | . . 4 Utility 1 | . . 1 Weapon 2 | . . 2 Highest Loss Streak 4 | . . 4 Average Slot Usage (%) 88 | . 99 80 Engine 10 | . 14 8 Leg 27 | . 28 26 Device 2 | . 5 . Storage 12 | . 14 11 Processor 16 | . 8 21 Energy Gun 8 | . 13 5 Ballistic Gun 8 | . 13 5 Naked Turns . | . . . Heaviest Build 18 | 14 18 17 Greatest Support 30 | 20 20 30 Greatest Overweight (x) 4 | . . 4 Average Overweight (x) . | . . . Largest Inventory Capacity 8 | 6 8 8 Average Capacity 7 | 5 7 8 Most Carried 8 | 3 8 8 Average Carried 5 | . 5 7 Final Capacity 8 | 6 8 8 Final Carried 8 | 1 8 6 Class Distribution -------------------- 100% | Mutant Dominant Class ---------------- Mutant | -10/Materials Mutant | -9/Materials Resources | -11 -10 -9 ----------- Run | Scr Mat Mat Matter Collected 426 | 189 152 85 Remotely . | . . . Salvage Created 343 | 17 152 174 Parts 21 | 2 9 10 Haulers Intercepted . | . . . Recyclers Shooed 3 | 1 1 1 Parts Field Recycled . | . . . Retrieved Matter . | . . . Parts Self-Destructed . | . . . Prevented . | . . . Kills | -11 -10 -9 ------- Run | Scr Mat Mat Combat Hostiles Destroyed 6 | . 3 3 Guns 6 | . 3 3 Classes Destroyed 5 | 1 3 1 Worker 2 | . 1 1 Tunneler 1 | 1 . . Watcher 2 | . 1 1 Grunt 5 | . 3 2 Sentry 1 | . . 1 Best Kill Streak 4 | 1 2 4 Combat Bots Only 2 | . 2 2 Max Kills in Single Turn 1 | 1 1 1 Gunslinging . | . . . Exploded . | . . . Melee . | . . . Uniques/NPCs Destroyed . | . . . Combat | -11 -10 -9 -------- Run | Scr Mat Mat Damage Taken 1235 | . 182 1053 Core 459 | . 56 403 Absorbed by Shields . | . . . Core Remaining (%) 88 | 100 77 . Volleys Fired 46 | 6 21 19 Largest 2 | 2 2 2 Hottest 70 | 70 70 70 Shots Fired 85 | 9 42 34 Gun 85 | 9 42 34 Cannon . | . . . Launcher . | . . . Special . | . . . Kinetic 42 | 6 21 15 Thermal 43 | 3 21 19 Explosive . | . . . Electromagnetic . | . . . Robot Hit Streak 11 | 3 7 11 Robot Miss Streak 3 | 1 3 2 Penetration Max . | . . . Secondary Targets . | . . . Shots Hit Robots 57 | 6 28 23 Core Hits 26 | 2 10 14 Critical Hits 1 | . . 1 Critical Kills 1 | . . 1 Critical Parts Destroyed . | . . . Melee Attacks . | . . . Impact . | . . . Slashing . | . . . Piercing . | . . . Sneak Attacks . | . . . Combat Hostiles . | . . . Follow-up Attacks . | . . . Damage Inflicted 665 | 75 305 285 Guns 619 | 75 298 246 Cannons . | . . . Explosions . | . . . Melee . | . . . Ramming 46 | . 7 39 Kinetic 269 | 50 124 95 Thermal 350 | 25 174 151 Explosive . | . . . Electromagnetic . | . . . Impact . | . . . Slashing . | . . . Piercing . | . . . Highest Corruption 2 | . . 2 Average Corruption 1 | . . 1 Corruption Purged . | . . . Effects 1 | . . 1 Message Errors 1 | . . 1 Overload Shots . | . . . Overflow Damage . | . . . Projectiles . | . . . Explosions . | . . . Melee . | . . . Knockbacks . | . . . Impact . | . . . Kinetic . | . . . Secondary . | . . . Self-Inflicted Damage 11 | . 3 8 Shots . | . . . Rammed 8 | . 1 7 Targets Rammed 12 | . 1 11 Kicked 4 | . . 4 Crushed . | . . . Highest Temperature 165 | 27 165 108 Average Temperature 49 | 14 56 47 Received Heat Transfer 660 | . 96 564 Siege Activations . | . . . Robots Corrupted . | . . . Combat Hostiles . | . . . Parts Fried . | . . . Impact Corruptions . | . . . Robots Melted . | . . . Combat Hostiles . | . . . Parts Melted 1 | . 1 . Heat Transferred 1036 | 74 518 444 Parts Sabotaged . | . . . Parts Stolen . | . . . Parts Stripped . | . . . Power Chain Reactions . | . . . Missiles Intercepted . | . . . Alert | -11 -10 -9 ------- Run | Scr Mat Mat Peak Influence 218 | 5 132 218 Initial 55 | . 3 55 Average 102 | 3 75 141 Maximum Alert Level 1 | . . 1 Low Security (%) 93 | 100 100 88 Level 1 6 | . . 11 Level 2 . | . . . Level 3 . | . . . Level 4 . | . . . Level 5 . | . . . High Security . | . . . Max Security . | . . . Squads Dispatched 2 | . 2 . Investigation 1 | . 1 . Extermination . | . . . Reinforcement 1 | . 1 . Assault . | . . . Garrison . | . . . Intercept . | . . . Construction Impeded . | . . . Haulers Reinforced . | . . . Stealth | -11 -10 -9 --------- Run | Scr Mat Mat Distress Signals 3 | . 1 2 Communications Jammed . | . . . Distress Signals . | . . . Times Spotted 20 | . 7 13 Peak Tracking Total 7 | . 3 7 Tactical Retreats 1 | . . 1 Traps | -11 -10 -9 ------- Run | Scr Mat Mat Traps Triggered . | . . . Indirectly . | . . . Trap Hack Attempts . | . . . Triggered . | . . . Disarmed . | . . . Reprogrammed . | . . . Reused . | . . . Traps Extracted . | . . . Installed . | . . . Triggered . | . . . Machines | -11 -10 -9 ---------- Run | Scr Mat Mat Machines Disabled . | . . . Max in Single Turn . | . . . Machines Sabotaged . | . . . Garrisons Compromised . | . . . Overloaded Fab Kills . | . . . Fab Network Shutdowns . | . . . Hacking | -11 -10 -9 --------- Run | Scr Mat Mat Machines Accessed 6 | . 1 5 Terminals 5 | . 1 4 Fabricators . | . . . Repair Stations . | . . . Recycling Units 1 | . . 1 Scanalyzers . | . . . Garrison Access . | . . . Total Hacks 16 | . 3 13 Successful 9 | . 1 8 Failed 7 | . 2 5 Catastrophic 1 | . . 1 Database Lockouts . | . . . Manual . | . . . Terminals 11 | . 3 8 Fabricators . | . . . Repair Stations . | . . . Recycling Units 5 | . . 5 Scanalyzers . | . . . Garrison Access . | . . . Terminal Hacks 7 | . 1 6 Record 1 | . . 1 Prototype ID Bank 1 | . . 1 Alert Level 1 | . . 1 Locate Traps 1 | . . 1 Dispatch Records 1 | . . 1 Surveillance Status 1 | . . 1 Patrol Status 1 | . 1 . Fabricator Hacks . | . . . Repair Station Hacks . | . . . Recycling Unit Hacks 2 | . . 2 Report Inventory 1 | . . 1 Retrieve Matter 1 | . . 1 Scanalyzer . | . . . Garrison Access Hacks . | . . . Unauthorized Hacks . | . . . Terminals . | . . . Fabricators . | . . . Repair Stations . | . . . Recycling Units . | . . . Scanalyzers . | . . . Garrison Access . | . . . Data Cores Recovered . | . . . Used . | . . . Hacking Detections 4 | . 1 3 Full Trace Events 1 | . 1 . Feedback Events . | . . . Feedback Blocked . | . . . Robot Schematics Acquired . | . . . Robots Built . | . . . Matter . | . . . Time . | . . . Total Robot Build Rating . | . . . Part Schematics Acquired . | . . . Parts Built . | . . . Matter . | . . . Time . | . . . Total Part Build Rating . | . . . Parts Repaired . | . . . Time . | . . . Parts Recycled . | . . . Recycled Matter . | . . . Retrieved Matter . | . . . Retrieved Components . | . . . Parts Scanalyzed . | . . . Part Schematics Acquired . | . . . Parts Damaged . | . . . Bothacking | -11 -10 -9 ------------ Run | Scr Mat Mat Used RIF Installer . | . . . Robots Hacked . | . . . Non-combat . | . . . Combat . | . . . Robot Hacks Applied . | . . . Relay Couplers Released . | . . . Robots Rewired . | . . . Allies Hacked . | . . . Hacks Repelled . | . . . Allies | -11 -10 -9 -------- Run | Scr Mat Mat Total Allies . | . . . Largest Group . | . . . Highest-Rated Group . | . . . Highest-Rated Ally . | . . . Total Orders . | . . . Ally Attacks . | . . . Total Damage . | . . . Kills . | . . . Allies Corrupted . | . . . Allies Melted . | . . . Intel | -11 -10 -9 ------- Run | Scr Mat Mat Robot Analysis Total . | . . . Derelict Logs Recovered . | . . . Drone Launches . | . . . Drone Recoveries . | . . . Exploration | -11 -10 -9 ------------- Run | Scr Mat Mat Turns Passed 699 | 76 246 377 Spaces Moved 413 | 41 134 238 Core 22 | 5 . 17 Treads . | . . . Legs 391 | 36 134 221 Wheels . | . . . Hover . | . . . Flight . | . . . Fastest Speed 50 | 50 120 120 Average Speed 122 | 111 120 125 Slowest Speed 250 | 120 120 250 Overloaded Moves . | . . . Propulsion Burnouts . | . . . Robots Hopped . | . . . Cave-ins Triggered . | . . . Exploration Rate (%) 14 | 4 22 17 Regions Visited 2 Branch Regions . Pre-discovered Areas . | . . . Known Exits Taken . | . . . Unknown Exits Taken 2 | 1 1 . Scrap Searched . | . . . Spaces Dug . | . . . Terrain Destroyed . | . . . Melee . | . . . Projectile . | . . . AOE . | . . . Terrain Rammed . | . . . Walls Destroyed . | . . . Machines Disabled . | . . . Actions | -11 -10 -9 --------- Run | Scr Mat Mat Total 524 | 63 182 279 Wait 3 | . . 3 Move 411 | 40 133 238 Hop . | . . . Pick Up 22 | 9 10 3 Fast Attach . | . . . Attach 18 | 7 7 4 Detach 7 | . 7 . Swap . | . . . Drop 5 | 1 3 1 Fire 46 | 6 21 19 Melee . | . . . Ram 1 | . . 1 Kick 11 | . 1 10 Crush . | . . . Escape Stasis . | . . . Rewire . | . . . Trap . | . . . Miscellaneous . | . . . Route ------- -11/Scrapyard -10/Materials -9/Materials History --------- Turn | Location | Event 4 | -11/Scrapyard | Discovered new exit (range 15) 77 | -11/Scrapyard | Entered Materials 269 | -10/Materials | Discovered new exit (range 10) 318 | -10/Materials | Build established: Mutant 323 | -10/Materials | Entered another Materials area 323 | -9/Materials | Evolved 2 slots: Propulsion x1, Utility x1 653 | -9/Materials | Lost 4 parts (1p3n) 680 | -9/Materials | Core integrity fell below 50% 690 | -9/Materials | Core integrity fell below 20% 700 | -9/Materials | Destroyed by G-34 Mercenary with Small Laser Last Messages --------------- Kicked G-34 Mercenary out of the way. Slammed into G-34 Mercenary. Aluminum Leg destroyed. Slammed into G-34 Mercenary. Kicked G-34 Mercenary out of the way. Slammed into G-34 Mercenary. Aluminum Leg destroyed. Ion Engine destroyed. U-05 Engineer lays Concrete. Slammed into R-06 Scavenger. Destabilizing: System corrupted (+1). R-06 Scavenger sends out distress signal. Slammed into G-47 Trooper. Destabilizing: System corrupted (+1). Aluminum Leg destroyed. Targeting Computer destroyed. Lgt. Nuclear Core destroyed. Slammed into G-34 Mercenary. 3XSZ3IKHJGXD#YVX79<&|,:HODZR23Q%I>MB T-07 Excavator is excavating. Map ----- +----------------------------------------------------+ | ?????????????????????????????????????????????????? | | ???????????????########??????????????????????????? | | ???????????????#!!!!!!#??????????????????????????? | | ???????????????#!!!!! #??????????????????????????? | | ???????????????# !#??????????????#???????????? | | ??????????????## ###????????????? #???????????? | | ??????????????# #?????????????? #???????????? | | ??????????????# ############?? #???????????? | | ??????????????# T / """ #?# #???????????? | | ???########???# ### "Y" # #???????????? | | ???# #???# #?# # ! # #??? | | ???# #???### ###?# / % + ] #??? | | ???# ####### #???# # [ # #??? | | ???# # #???# """ # #???????????? | | ???# / #???# """ #? ##???????????? | | ???# # ^^ #???# """ #? #????????????? | | ???##+##### ^^ ##### #?? #????????????? | | ????# g ############ #????????????? | | ????#### ########+##u ] #????????????? | | ???????# #?????"" # gg a ????????????? | | ???????# #??? """ # g """?? ???????????? | | ???????# #??# """ # """?? ???????????? | | ????#### #??# # "" """???##??????????? | | ????# #??# ##### "T """ ??????????????? | | ????# #??# #???# "" """ #????????????? | | ????# #???#######???# @ +???????????? | | ????# ##/######????????# #????????????? | | ????# ## #????????# ####+#????????????? | | ???## ## "" #????????# #?????????????????? | | ???# # "T #????????# +?????????????????? | | ???# # "" #????????# #?????????????????? | | ???# + #????????t #?????????????????? | | ???# ########????????# #####?????????????????? | | ??## ##??????????????### #?????????????????????? | | ??# #?????????????????r#?????????????????????? | | ??# #????????????????? #?????????????????????? | | ??# T +????????????????? #?????????????????????? | | ??# #????????????????? #?????????????????????? | | ??# #????????????????? +?????????????????????? | | ??### ###?????????????????#??????????????????????? | | ????# ##########?????????????????????????????????? | | ???## ## ! #?????????????????????????????????? | | ???# # #?????????????????????????????????? | | ???# T / #?????????????????????????????????? | | ???# # #?????????????????????????????????? | | ???## ## #?????????????????????????????????? | | ????# ##########?????????????????????????????????? | | ????# ###########????????????????????????????????? | | ????# # #????????????????????????????????? | | ????# # #????????????????????????????????? | +----------------------------------------------------+ Best States ------------- Heat Dissipation 28 Energy Generation 14 Energy Capacity 250 Matter Stores 300 Matter Capacity 300 Sight Range 16 Terrain Scan Range 16 Terrain Scan Density 10 Evasion (%) 40 Targeting Accuracy 5 Item Schematics ----------------- None Robot Schematics ------------------ None Fabricated ------------ Nothing Alien Tech Used ----------------- None Achievements -------------- None Challenges ------------ None Game ------ Seed DimensionalShadeTreads Manual? 0 Play Time 00:13:34 Cumulative 4.6 hours Start 2021.10.18 @ 09:58:15 End 2021.10.18 @ 10:11:15 Sessions 1 Manual Loads 0 Difficulty Rogue Special Mode None Game No. 13 Rogue 13 Adventurer 0 Explorer 0 Win Type - Total 0 Types 0/0/0/0/0/0/0/0/0 Lore% 6 Gallery% 10 Achievement% 8 Wizard Run 0 Options --------- ASCII 0 Keyboard 1 Movement Numpad Keybinds 0 Fullscreen 2 Font 16/SmallcapsGlow Map View 76x50 Tactical HUD 0 Map Filters NONE Filters NONE Steam 1 RUN: 41e7e2be-1fd9-427d-af35-c9739c1c7b9d